fUSD/lending_fUSD_20240409
["ID","MTS","AMOUNT","RATE_DAILY","PERIOD"]
[321974659,1712665851176,-970.17,0.00020798,2]
[321974660,1712665851185,-500.0,0.00020798,2]
[321974661,1712665851195,-1035.05,0.00020798,2]
[321974662,1712665851204,-500.0,0.00020798,2]
[321974663,1712665851214,-500.0,0.00020798,2]
[321974664,1712665851224,-500.0,0.00020798,2]
[321974665,1712665851234,-500.0,0.00020798,2]
[321974666,1712665851244,-261.71317513,0.00020798,2]
[321974667,1712665851276,-828.24682487,0.00020798,2]
[321974668,1712665851285,-320.22793992,0.00020798,2]
[321974669,1712665983262,25000.0,0.00032792,30]
[321974671,1712666009680,151.0,0.00027355,120]
[321974673,1712666118031,391.98,0.00017794,2]
[321974674,1712666152797,193.17367887,0.0001,2]
[321974675,1712666229558,1000.0,0.00032771,30]
[321974677,1712666348798,5000.0,0.000225,10]
[321974678,1712666362925,2500.0,0.00018101,2]
[321974737,1712666459359,2500.0,0.00018101,2]
[321974738,1712666577551,372.38,0.00017715,2]
[321974739,1712666618438,151.0,0.00027512,120]
[321974740,1712666636117,25000.0,0.00032771,30]
[321974752,1712666933932,151.0,0.00027673,120]
[321974754,1712666986100,3397.45612235,0.00032772,30]
[321974755,1712667005886,25000.0,0.00032772,30]
[321974778,1712667032763,-373.01119864,0.0001861,2]
[321974779,1712667032774,-265.30480136,0.00019,3]
[321974780,1712667032786,-297.182565,0.00019,3]
[321974781,1712667032821,-687.51263364,0.00019,3]
[321974782,1712667032830,-1233.16,0.00019627,2]
[321974783,1712667032840,-169.9,0.00019627,2]
[321974784,1712667032850,-166.79,0.00019633,2]
[321974785,1712667032860,-1196.27057008,0.00019644,2]
[321974786,1712667032870,-828.06281912,0.00019644,2]
[321974787,1712667032891,-1000.0,0.00019786,2]
[321974788,1712667032901,-372.38,0.00019979,2]
[321974789,1712667032911,-150.0,0.00020438,2]
[321974790,1712667032924,-29722.93791812,0.00020478,2]
[321974791,1712667032955,-968.5884,0.00020478,2]
[321974792,1712667032979,-286.21301711,0.00020478,2]
[321974793,1712667033015,-25646.68251826,0.00020478,2]
[321974794,1712667033026,-499.99,0.00020478,2]
[321974795,1712667033039,-1058.7341,0.00020478,2]
[321974796,1712667033051,-507.93,0.00020478,2]
[321974797,1712667033061,-1440.5879,0.00020478,2]
[321974798,1712667033070,-549.5779,0.00020478,2]
[321974799,1712667033080,-2148.3259,0.00020478,2]
[321974800,1712667033090,-1277.44028842,0.00020479,2]
[321974801,1712667033100,-530.0,0.00020547,2]
[321974802,1712667033111,-3717.585,0.00020552,2]
[321974803,1712667033121,-302.41930428,0.00020574,2]
[321974804,1712667033131,-214.39582703,0.00020575,2]
[321974805,1712667033141,-1471.6153564,0.00020576,2]
[321974806,1712667033151,-251.23310467,0.00020576,2]
[321974807,1712667033161,-262.4033,0.00020577,2]
[321974808,1712667033171,-21111.10727368,0.00020577,2]
[321974809,1712667033181,-57011.68513649,0.00020578,2]
[321974810,1712667033192,-5931.3455,0.00020578,2]
[321974811,1712667033204,-5930.3974728,0.00020578,2]
[321974812,1712667033216,-15463.2304455,0.00020578,2]
[321974813,1712667033228,-12824.02694521,0.00020578,2]
[321974814,1712667033238,-2393.33091495,0.00020579,2]
[321974815,1712667033248,-260.36378,0.0002059,2]
[321974816,1712667033258,-527.0,0.00020672,2]
[321974817,1712667033271,-1938.6,0.00020673,2]
[321974818,1712667033281,-1774.15460518,0.00020673,2]
[321974843,1712667038056,-606.82,0.00020672,2]
[321974844,1712667038066,-1393.55539482,0.00020673,2]
[321974845,1712667038077,-1110.83,0.00020673,2]
[321974846,1712667038087,-3459.56,0.00020673,2]
[321974847,1712667038098,-2786.1562141,0.00020673,2]
[321974848,1712667038110,-1174.0137859,0.00020673,2]
[321974849,1712667038120,-850.3196033,0.00020673,2]
[321974850,1712667038133,-1998.1703967,0.00020673,2]
[321974851,1712667038142,-3263.19,0.00020673,2]
[321974852,1712667038152,-500.0,0.00020673,2]
[321974853,1712667038162,-2569.12,0.00020673,2]
[321974854,1712667038172,-18266.67,0.00020673,2]
[321974855,1712667038182,-4098.08,0.00020673,2]
[321974856,1712667038192,-8419.86,0.00020673,2]
[321974857,1712667038203,-3400.5096033,0.00020673,2]
[321974858,1712667038215,-2485.11247109,0.00020673,2]
[321974859,1712667038228,-14.61792561,0.00020673,2]
[321974860,1712667038239,-3721.73,0.00020673,2]
[321974861,1712667038249,-6364.36,0.00020673,2]
[321974862,1712667038259,-1906.17,0.00020673,2]
[321974863,1712667038271,-3112.41,0.00020673,2]
[321974864,1712667038282,-2557.5,0.00020673,2]
[321974865,1712667038295,-3018.65,0.00020673,2]
[321974866,1712667038305,-5079.44,0.00020673,2]
[321974867,1712667038315,-500.0,0.00020673,2]
[321974868,1712667038325,-6287.14,0.00020673,2]
[321974869,1712667038335,-2792.94,0.00020673,2]
[321974870,1712667038344,-500.0,0.00020673,2]
[321974871,1712667038354,-500.0,0.00020673,2]
[321974872,1712667038363,-1424.52,0.00020673,2]
[321974873,1712667038372,-586.12,0.00020673,2]
[321974874,1712667038381,-500.0,0.00020674,2]
[321974875,1712667038391,-500.0,0.00020674,2]
[321974876,1712667038401,-796.33,0.00020674,2]
[321974877,1712667038411,-500.0,0.00020674,2]
[321974878,1712667038420,-597.73,0.00020674,2]
[321974879,1712667038430,-1329.12,0.00020674,2]
[321974880,1712667038439,-1215.03,0.00020674,2]
[321974881,1712667038448,-1020.65,0.00020674,2]
[321974882,1712667038458,-770.77,0.00020674,2]
[321974883,1712667038468,-745.5,0.00020674,2]
[321974884,1712667038477,-1571.82,0.00020674,2]
[321974885,1712667038486,-674.35,0.00020674,2]
[321974886,1712667038495,-500.0,0.00020674,2]
[321974887,1712667038505,-1179.66,0.00020674,2]
[321974888,1712667038514,-1414.12,0.00020674,2]
[321974889,1712667038525,-853.4,0.00020674,2]
[321974890,1712667038534,-500.0,0.00020674,2]
[321974891,1712667038544,-674.11,0.00020674,2]
[321974892,1712667038553,-1376.96,0.00020674,2]
[321974893,1712667038562,-973.74,0.00020674,2]
[321974894,1712667038572,-500.0,0.00020674,2]
[321974895,1712667038581,-1103.95,0.00020674,2]
[321974897,1712667038591,-500.0,0.00020674,2]
[321974899,1712667038600,-500.0,0.00020674,2]
[321974901,1712667038609,-504.73,0.00020674,2]
[321974902,1712667038619,-1578.84,0.00020674,2]
[321974903,1712667038628,-500.0,0.00020674,2]
[321974904,1712667038637,-500.0,0.00020674,2]
[321974905,1712667038647,-500.0,0.00020674,2]
[321974906,1712667038656,-500.0,0.00020674,2]
[321974907,1712667038666,-1001.78,0.00020674,2]
[321974908,1712667038679,-500.0,0.00020674,2]
[321974909,1712667038689,-500.0,0.00020674,2]
[321974910,1712667038698,-500.0,0.00020674,2]
[321974911,1712667038708,-960.94,0.00020674,2]
[321974912,1712667038718,-558.43,0.00020674,2]
[321974913,1712667038730,-1714.74,0.00020674,2]
[321974914,1712667038740,-1258.27,0.00020674,2]
[321974915,1712667038750,-512.66613416,0.00020674,2]
[321974916,1712667038759,-500.0,0.00020674,2]
[321974917,1712667038771,-500.0,0.00020674,2]
[321974918,1712667038780,-500.0,0.00020674,2]
[321974919,1712667038789,-605.01945499,0.00020674,2]
[321974920,1712667038798,-602.18,0.00020674,2]
[321974921,1712667038808,-987.06,0.00020674,2]
[321974922,1712667038819,-500.0,0.00020674,2]
[321974923,1712667038830,-500.0,0.00020674,2]
[321974924,1712667038839,-171.40248417,0.00020674,2]
[321974925,1712667038849,-1003.66,0.00020674,2]
[321974926,1712667038858,-500.0,0.00020674,2]
[321974927,1712667038868,-500.0,0.00020674,2]
[321974928,1712667038878,-500.0,0.00020674,2]
[321974929,1712667038888,-372.52447289,0.00020674,2]
[321974930,1712667038897,-564.02,0.00020674,2]
[321974931,1712667038907,-736.72,0.00020674,2]
[321974932,1712667038916,-578.5,0.00020674,2]
[321974933,1712667038926,-2297.03,0.00020674,2]
[321974934,1712667038935,-500.0,0.00020674,2]
[321974935,1712667038945,-1622.58,0.00020674,2]
[321974936,1712667038955,-500.0,0.00020674,2]
[321974937,1712667038964,-500.0,0.00020674,2]
[321974938,1712667038973,-2400.93,0.00020674,2]
[321974939,1712667038982,-500.0,0.00020674,2]
[321974940,1712667038991,-1036.5,0.00020674,2]
[321974941,1712667039001,-500.0,0.00020674,2]
[321974942,1712667039010,-1532.69,0.00020674,2]
[321974943,1712667039020,-4794.84,0.00020674,2]
[321974944,1712667039029,-500.0,0.00020674,2]
[321974945,1712667039039,-1323.73,0.00020674,2]
[321974946,1712667039048,-500.0,0.00020674,2]
[321974947,1712667039058,-500.0,0.00020674,2]
[321974948,1712667039067,-500.0,0.00020674,2]
[321974949,1712667039077,-4140.29870009,0.00020674,2]
[321974950,1712667039668,-363.25872601,0.00020673,2]
[321974951,1712667039690,-8614.79127399,0.00020673,2]
[321974952,1712667039699,-7438.96797098,0.00020674,2]
[321974953,1712667039714,-3217.77514072,0.00020674,2]
[321974957,1712667039822,-2582.90717698,0.00020674,2]
[321974958,1712667040275,-444.34999985,0.00020674,2]
[321974959,1712667040307,-23018.70101138,0.00020674,2]
[321974961,1712667040316,-550.25042309,0.00020674,2]
[321974963,1712667040325,-1474.92,0.00020674,2]
[321974965,1712667040334,-500.0,0.00020674,2]
[321974967,1712667040344,-1242.38,0.00020674,2]
[321974969,1712667040353,-4219.44,0.00020674,2]
[321974970,1712667040362,-500.0,0.00020674,2]
[321974972,1712667040371,-1263.18,0.00020674,2]
[321974973,1712667040381,-678.74,0.00020674,2]
[321974974,1712667040390,-500.0,0.00020674,2]
[321974975,1712667040399,-500.0,0.00020674,2]
[321974976,1712667040408,-500.0,0.00020674,2]
[321974977,1712667040417,-500.0,0.00020674,2]
[321974978,1712667040426,-500.0,0.00020674,2]
[321974979,1712667040436,-500.0,0.00020674,2]
[321974980,1712667040446,-648.33,0.00020674,2]
[321974981,1712667040455,-2539.73,0.00020674,2]
[321974982,1712667040464,-1325.26,0.00020674,2]
[321974983,1712667040473,-500.0,0.00020674,2]
[321974984,1712667040482,-931.41,0.00020674,2]
[321974985,1712667040492,-2207.11,0.00020674,2]
[321974986,1712667040501,-500.0,0.00020674,2]
[321974987,1712667040511,-500.0,0.00020674,2]
[321974988,1712667040522,-1855.95,0.00020674,2]
[321974989,1712667040531,-2375.87,0.00020674,2]
[321974990,1712667040540,-300.0,0.00020674,2]
[321974991,1712667040550,-2900.13,0.00020674,2]
[321974992,1712667040559,-500.0,0.00020674,2]
[321974993,1712667040568,-571.79,0.00020674,2]
[321974994,1712667040578,-5130.45,0.00020674,2]
[321974995,1712667040587,-500.0,0.00020674,2]
[321974996,1712667040596,-500.0,0.00020674,2]
[321974997,1712667040605,-1624.39,0.00020674,2]
[321974998,1712667040614,-542.62,0.00020674,2]
[321974999,1712667040623,-1528.66,0.00020674,2]
[321975000,1712667040632,-500.0,0.00020674,2]
[321975001,1712667040641,-500.0,0.00020674,2]
[321975002,1712667040650,-3221.26,0.00020674,2]
[321975003,1712667040659,-500.0,0.00020674,2]
[321975004,1712667040669,-5271.62,0.00020674,2]
[321975005,1712667040678,-500.0,0.00020674,2]
[321975006,1712667040687,-500.0,0.00020674,2]
[321975007,1712667040697,-720.41,0.00020674,2]
[321975008,1712667040706,-500.0,0.00020674,2]
[321975009,1712667040715,-233.95402706,0.00020674,2]
[321975010,1712667040731,-500.0,0.00020674,2]
[321975011,1712667040744,-6534.72,0.00020674,2]
[321975012,1712667040753,-904.5,0.00020674,2]
[321975013,1712667040763,-524.5,0.00020674,2]
[321975014,1712667040778,-1062.21,0.00020674,2]
[321975015,1712667040788,-500.0,0.00020674,2]
[321975016,1712667040797,-150.0,0.00020674,2]
[321975017,1712667040807,-500.0,0.00020674,2]
[321975018,1712667040816,-16714.68,0.00020674,2]
[321975019,1712667040826,-1698.04,0.00020674,2]
[321975020,1712667040835,-1246.26414824,0.00020674,2]
[321975021,1712667040848,-374.21585176,0.00020674,2]
[321975022,1712667040858,-500.0,0.00020674,2]
[321975023,1712667040867,-500.0,0.00020674,2]
[321975024,1712667040876,-2634.19,0.00020674,2]
[321975025,1712667040886,-1941.08222597,0.00020674,2]
[321975026,1712667040897,-2389.95777403,0.00020674,2]
[321975027,1712667040907,-562.43,0.00020674,2]
[321975028,1712667040916,-554.68,0.00020674,2]
[321975029,1712667040926,-95.14418113,0.00020674,2]
[321975030,1712667040938,-3097.90581887,0.00020674,2]
[321975031,1712667040947,-500.0,0.00020674,2]
[321975032,1712667040957,-500.0,0.00020674,2]
[321975033,1712667040966,-30.73404996,0.00020674,2]
[321975034,1712667040978,-469.26595004,0.00020674,2]
[321975035,1712667040987,-359.95804194,0.00020674,2]
[321975036,1712667040997,-2793.43,0.00020674,2]
[321975037,1712667041006,-310.71064746,0.00020674,2]
[321975038,1712667041020,-1148.97935254,0.00020674,2]
[321975039,1712667041029,-500.0,0.00020674,2]
[321975040,1712667041038,-2783.28903772,0.00020674,2]
[321975041,1712667041049,-43.79096228,0.00020674,2]
[321975042,1712667041059,-2273.76,0.00020674,2]
[321975043,1712667041068,-500.0,0.00020674,2]
[321975044,1712667041077,-500.0,0.00020674,2]
[321975045,1712667041087,-500.0,0.00020674,2]
[321975046,1712667041096,-534.51,0.00020674,2]
[321975047,1712667041105,-2405.90653827,0.00020674,2]
[321975048,1712667041119,-4532.94346173,0.00020674,2]
[321975049,1712667041129,-500.0,0.00020675,2]
[321975050,1712667041139,-500.0,0.00020675,2]
[321975051,1712667041149,-1394.19,0.00020675,2]
[321975052,1712667041159,-1002.56,0.00020675,2]
[321975053,1712667041169,-500.0,0.00020675,2]
[321975054,1712667041179,-1141.34,0.00020675,2]
[321975055,1712667041188,-500.0,0.00020675,2]
[321975056,1712667041197,-1226.68,0.00020675,2]
[321975057,1712667041206,-1579.94,0.00020675,2]
[321975058,1712667041216,-860.07,0.00020675,2]
[321975059,1712667041225,-500.0,0.00020675,2]
[321975060,1712667041234,-500.0,0.00020675,2]
[321975061,1712667041244,-500.0,0.00020675,2]
[321975062,1712667041254,-1271.34,0.00020675,2]
[321975063,1712667041263,-983.72,0.00020675,2]
[321975064,1712667041274,-702.57,0.00020675,2]
[321975065,1712667041283,-1066.76,0.00020675,2]
[321975066,1712667041292,-996.05,0.00020675,2]
[321975067,1712667041302,-3024.62,0.00020675,2]
[321975068,1712667041311,-500.0,0.00020675,2]
[321975069,1712667041320,-500.0,0.00020675,2]
[321975070,1712667041329,-596.28,0.00020675,2]
[321975071,1712667041338,-500.0,0.00020675,2]
[321975072,1712667041347,-500.0,0.00020675,2]
[321975073,1712667041356,-1036.36,0.00020675,2]
[321975074,1712667041366,-500.0,0.00020675,2]
[321975075,1712667041375,-2225.07,0.00020675,2]
[321975076,1712667041384,-858.26,0.00020675,2]
[321975077,1712667041393,-1745.4,0.00020675,2]
[321975078,1712667041402,-500.0,0.00020675,2]
[321975079,1712667041412,-49.67439339,0.00020675,2]
[321975080,1712667041423,-450.32560661,0.00020675,2]
[321975081,1712667041433,-1149.42,0.00020675,2]
[321975082,1712667041442,-17.84639839,0.00020675,2]
[321975083,1712667041453,-1363.68834929,0.00020675,2]
[321975084,1712667041465,-39.75525232,0.00020675,2]
[321975085,1712667041474,-415.88474768,0.00020675,2]
[321975086,1712667041515,-84.11525232,0.00020675,2]
[321975087,1712667041527,-279.49219256,0.00020675,2]
[321975088,1712667043275,-3005.10756317,0.00020675,2]
[321975089,1712667043335,-557.50024427,0.00020675,2]
[321975090,1712667043344,-6349.82865156,0.00020675,2]
[321975091,1712667043355,-1131.47648383,0.00020675,2]
[321975092,1712667043396,-2789.81769287,0.00020675,2]
[321975124,1712667046055,-2201.32,0.00020673,2]
[321975125,1712667046066,-874.77,0.00020674,2]
[321975126,1712667046076,-500.0,0.00020674,2]
[321975127,1712667046086,-321.48717174,0.00020675,2]
[321975128,1712667046098,-388.72389182,0.00020675,2]
[321975129,1712667046108,-6196.54,0.00020675,2]
[321975130,1712667046119,-3077.77,0.00020675,2]
[321975131,1712667046129,-10098.0424381,0.00020675,2]
[321975132,1712667046170,-5697.5475619,0.00020675,2]
[321975133,1712667046180,-1811.01,0.00020675,2]
[321975134,1712667046190,-9807.4,0.00020675,2]
[321975135,1712667046201,-4571.07729001,0.00020675,2]
[321975136,1712667046393,-3729.89270999,0.00020675,2]
[321975137,1712667046402,-1364.4,0.00020675,2]
[321975138,1712667046412,-1993.92758584,0.00020675,2]
[321975139,1712667046423,-23.82241416,0.00020675,2]
[321975140,1712667046433,-4457.97,0.00020675,2]
[321975141,1712667046443,-486.95200582,0.00020675,2]
[321975142,1712667079429,25000.0,0.00032772,30]
[321975143,1712667090965,335.14,0.00017876,2]
[321975145,1712667210620,365.06217802,0.00017876,2]
[321975146,1712667230514,368.15156299,0.00017876,2]
[321975147,1712667237864,179.45,0.00015764,2]
[321975148,1712667239610,1883.94819288,0.00012,2]
[321975149,1712667242296,296.25451302,0.00017876,2]
[321975150,1712667256294,296.25451302,0.00017876,2]
[321975151,1712667258589,286.32890435,0.000125,2]
[321975152,1712667270739,14164.45865957,0.00015,2]
[321975153,1712667272140,653.20048914,0.00018,2]
[321975154,1712667276300,296.7240698,0.000125,2]
[321975155,1712667436988,151.0,0.00027934,120]
[321975156,1712667450698,5875.02691721,0.000125,2]
[321975157,1712667450718,5000.0,0.000125,2]
[321975158,1712667450745,9255.83024466,0.000125,2]
[321975159,1712667466578,5098.56867376,0.000125,2]
[321975163,1712667536957,25000.0,0.00032761,30]
[321975188,1712667587669,318.38,0.00017753,2]
[321975192,1712667736157,940.08470368,0.00017753,2]
[321975193,1712667742622,1273.8793752,0.00017753,2]
[321975194,1712667749449,292.06930916,0.00017753,2]
[321975195,1712667758829,296.25451302,0.00017753,2]
[321975196,1712667767373,292.06930916,0.00017753,2]
[321975197,1712667774844,42509.60567511,0.00017753,2]
[321975198,1712667776345,190.81359173,0.00017753,2]
[321975199,1712667776369,105.44092129,0.00017753,2]
[321975200,1712667780623,179.236496,0.00017753,2]
[321975201,1712667785377,292.06930916,0.00017753,2]
[321975202,1712667788806,42509.60567511,0.00017753,2]
[321975203,1712667790067,360.4075085,0.00017753,2]
[321975204,1712667794766,363.44955263,0.00016535,2]
[321975205,1712667798451,296.25451302,0.00017753,2]
[321975206,1712667798575,240.27611559,0.00017753,2]
[321975207,1712667804709,19636.48974114,0.00017753,2]
[321975208,1712667807471,299.92370311,0.00017753,2]
[321975209,1712667807877,1034.32102367,0.00017753,2]
[321975210,1712667810774,8305.88236743,0.00017753,2]
[321975211,1712667814356,296.25451302,0.00017753,2]
[321975212,1712667815385,170.88675485,0.00017753,2]
[321975213,1712667824630,1468.73862598,0.00017753,2]
[321975214,1712667824659,4961.7631795,0.00017753,2]
[321975215,1712667824687,5029.6357181,0.00017753,2]
[321975216,1712667829829,1097.07810561,0.00017753,2]
[321975217,1712667832523,296.25451302,0.00017753,2]
[321975218,1712667843702,157.0,0.000297,120]
[321975219,1712667843799,967.35993888,0.00017753,2]
[321975220,1712667850363,296.25451302,0.00017753,2]
[321975221,1712667857424,1000.0,0.00020672,10]
[321975222,1712667857744,1000.0,0.00020672,10]
[321975223,1712667858005,1000.0,0.00020672,10]
[321975224,1712667858281,1000.004285,0.00020672,10]
[321975225,1712667870363,272.37219144,0.00017753,2]
[321975226,1712667988709,296.25451302,0.00017753,2]
[321975227,1712667992664,365.06217802,0.00017753,2]
[321975228,1712668004377,296.25451302,0.00017753,2]
[321975229,1712668014677,368.15156299,0.00017753,2]
[321975234,1712668052059,40000.0,0.000252,17]
[321975240,1712668125788,445.58,0.00016891,2]
[321975241,1712668147275,-898.12143809,0.0002688,30]
[321975243,1712668170020,10000.0,0.00026,30]
[321975257,1712668232153,-164.14681743,0.00018577,2]
[321975258,1712668232163,-1256.86954257,0.00018577,2]
[321975259,1712668232175,-1818.53977268,0.00018577,2]
[321975260,1712668232184,-1978.58397019,0.00018577,2]
[321975261,1712668232195,-1396.84877997,0.00018577,2]
[321975263,1712668232209,-785.52907082,0.00018577,2]
[321975264,1712668232218,-809.38771434,0.00018577,2]
[321975265,1712668232228,-155.0,0.00018578,2]
[321975266,1712668232236,-93.03443487,0.00018578,2]
[321975267,1712668232248,-315.12531266,0.00018578,2]
[321975268,1712668232256,-155.0,0.00018578,2]
[321975269,1712668232265,-447.15745279,0.00018579,2]
[321975270,1712668232274,-296.00785364,0.00018579,2]
[321975271,1712668232283,-155.0,0.00018579,2]
[321975272,1712668232292,-169.63,0.0001858,2]
[321975273,1712668232301,-266.84805779,0.00018612,2]
[321975274,1712668232310,-407.53973989,0.00018612,2]
[321975275,1712668232319,-251.044201,0.00018612,2]
[321975276,1712668232328,-155.0,0.00018613,2]
[321975277,1712668232337,-5534.18994366,0.00018613,2]
[321975278,1712668232346,-8886.16256706,0.00018613,2]
[321975279,1712668232355,-4718.36355901,0.00018613,2]
[321975280,1712668232364,-22762.20667419,0.00018613,2]
[321975281,1712668232372,-155.0,0.00018614,2]
[321975282,1712668232381,-779.6432925,0.00018614,2]
[321975283,1712668232390,-4407.84,0.00018614,2]
[321975284,1712668232399,-284.99900998,0.00018615,2]
[321975285,1712668232408,-1000.0,0.00018648,2]
[321975286,1712668232417,-201.87774174,0.00018707,2]
[321975287,1712668232426,-155.0,0.00018707,2]
[321975288,1712668232435,-2751.0,0.00018708,2]
[321975289,1712668232444,-620.54602664,0.00018715,2]
[321975291,1712668232455,-24308.81492575,0.00018719,2]
[321975293,1712668232464,-150.0,0.00018729,2]
[321975295,1712668232473,-250.0,0.0001882,2]
[321975297,1712668232482,-219.87,0.0001882,2]
[321975299,1712668232490,-298.51979636,0.00019,2]
[321975301,1712668232499,-233.39577978,0.00019107,2]
[321975303,1712668232508,-150.0,0.00019108,2]
[321975305,1712668232517,-989.0,0.00019111,2]
[321975307,1712668232526,-1438.2851,0.00019113,2]
[321975309,1712668232535,-821.43,0.00019139,2]
[321975311,1712668232543,-445.58,0.00019155,2]
[321975313,1712668232552,-8025.12,0.00019172,2]
[321975315,1712668232561,-6357.28,0.00019178,2]
[321975317,1712668232570,-5292.68,0.00019213,2]
[321975320,1712668232579,-378.6,0.00019291,2]
[321975323,1712668232588,-378.6,0.00019343,2]
[321975326,1712668232597,-378.6,0.00019396,2]
[321975328,1712668232605,-451.42123688,0.00019429,2]
[321975331,1712668232614,-378.6,0.00019449,2]
[321975334,1712668232622,-378.6,0.00019502,2]
[321975336,1712668232631,-378.6,0.00019555,2]
[321975338,1712668232639,-378.6,0.00019608,2]
[321975340,1712668232648,-384.66,0.00019632,2]
[321975342,1712668232657,-384.66,0.00019637,2]
[321975344,1712668232665,-384.66,0.00019642,2]
[321975346,1712668232674,-384.66,0.00019647,2]
[321975348,1712668232684,-384.66,0.00019653,2]
[321975350,1712668232692,-384.66,0.00019658,2]
[321975352,1712668232703,-378.6,0.00019661,2]
[321975354,1712668232711,-384.66,0.00019663,2]
[321975356,1712668232721,-4258.56225566,0.00019665,2]
[321975357,1712668232730,-384.66,0.00019668,2]
[321975359,1712668232739,-384.66,0.00019673,2]
[321975362,1712668232749,-384.66,0.00019678,2]
[321975364,1712668232758,-384.66,0.00019684,2]
[321975366,1712668232767,-384.66,0.00019689,2]
[321975368,1712668232777,-384.66,0.00019694,2]
[321975370,1712668232786,-384.66,0.00019699,2]
[321975372,1712668232795,-384.66,0.00019704,2]
[321975374,1712668232805,-384.66,0.0001971,2]
[321975376,1712668232814,-378.6,0.00019714,2]
[321975378,1712668232824,-384.66,0.00019715,2]
[321975380,1712668232833,-384.66,0.0001972,2]
[321975382,1712668232842,-384.66,0.00019725,2]
[321975384,1712668232851,-384.66,0.0001973,2]
[321975386,1712668232860,-378.6,0.00019767,2]
[321975388,1712668232869,-378.6,0.0001982,2]
[321975390,1712668232878,-378.6,0.00019873,2]
[321975392,1712668232887,-12274.57820668,0.000199,2]
[321975393,1712668232898,-378.6,0.00019925,2]
[321975395,1712668232907,-378.6,0.00019978,2]
[321975397,1712668232916,-547.99185298,0.0002,2]
[321975399,1712668232926,-3200.80983817,0.0002,2]
[321975401,1712668232935,-25229.80905747,0.0002,7]
[321975403,1712668232945,-56624.42185349,0.0002,2]
[321975405,1712668232957,-378.6,0.00020031,2]
[321975407,1712668232967,-378.6,0.00020084,2]
[321975410,1712668232977,-12274.57820663,0.00020097,2]
[321975411,1712668232986,-378.6,0.00020137,2]
[321975413,1712668232995,-378.6,0.0002019,2]
[321975415,1712668233004,-3889.92621267,0.00020196,2]
[321975417,1712668233013,-378.6,0.00020243,2]
[321975419,1712668233022,-378.6,0.00020296,2]
[321975421,1712668233031,-3889.9262126,0.0002037,2]
[321975423,1712668233041,-329.76007094,0.000204,2]
[321975425,1712668233049,-783.94433531,0.000204,2]
[321975427,1712668233058,-164.17,0.0002041,3]
[321975429,1712668233068,-390.01,0.0002041,2]
[321975431,1712668233079,-14894.7128458,0.0002042,2]
[321975433,1712668233088,-10637.96502879,0.0002042,2]
[321975435,1712668233101,-974.4156951,0.0002042,2]
[321975437,1712668233110,-868.1937361,0.0002042,2]
[321975439,1712668233120,-152.87406506,0.0002042,2]
[321975441,1712668233130,-953.58625473,0.0002042,3]
[321975443,1712668233139,-150.0,0.00020453,2]
[321975445,1712668233148,-216.96982,0.0002047,2]
[321975447,1712668233157,-783.94433524,0.00020471,2]
[321975449,1712668233166,-6230.20093283,0.00020478,2]
[321975459,1712668233245,-500.0,0.00020419,2]
[321975461,1712668233254,-500.0,0.00020419,2]
[321975463,1712668233264,-11677.69566717,0.00020478,2]
[321975465,1712668233273,-390.01,0.0002049,2]
[321975467,1712668233282,-390.01,0.0002049,2]
[321975469,1712668233291,-390.01,0.0002049,2]
[321975471,1712668233300,-390.01,0.0002049,2]
[321975473,1712668233309,-390.01,0.0002049,2]